fUSD/lending_fUSD_20250923
["ID","MTS","AMOUNT","RATE_DAILY","PERIOD"]
[387225978,1758661860329,-500.0,0.00024657,3]
[387225979,1758661860338,-500.0,0.00024657,3]
[387225980,1758661860348,-400.0,0.00024657,3]
[387225981,1758661860357,-1561.57,0.00024657,3]
[387225982,1758661860366,-500.0,0.00024657,3]
[387225983,1758661860375,-326.85095665,0.00024657,3]
[387225984,1758661860384,-672.72,0.00024657,3]
[387225985,1758661860393,-400.0,0.00024657,3]
[387225986,1758661860403,-657.73,0.00024657,3]
[387225987,1758661860413,-523.11,0.00024657,3]
[387225988,1758661860422,-1947.97,0.00024657,3]
[387225989,1758661860431,-2717.59,0.00024657,3]
[387225990,1758661860440,-400.0,0.00024657,3]
[387225991,1758661860450,-152.791106,0.00024657,7]
[387225992,1758661860459,-401.33,0.00024657,3]
[387225993,1758661860468,-400.0,0.00024657,3]
[387225994,1758661860478,-538.16,0.00024657,3]
[387225995,1758661860487,-403.27856183,0.00024657,3]
[387225996,1758661860496,-467.81089286,0.00024657,3]
[387225997,1758661860506,-400.0,0.00024657,3]
[387225998,1758661860515,-151.0,0.00024657,7]
[387225999,1758661860524,-151.0,0.00024657,7]
[387226000,1758661860533,-1433.15,0.00024657,3]
[387226001,1758661860543,-151.0,0.00024657,7]
[387226002,1758661860552,-151.0,0.00024657,7]
[387226003,1758661860562,-1919.57,0.00024657,3]
[387226004,1758661860571,-400.0,0.00024657,3]
[387226005,1758661860582,-926.01,0.00024657,3]
[387226006,1758661860592,-151.0,0.00024657,7]
[387226007,1758661860602,-151.0,0.00024657,7]
[387226008,1758661860611,-400.0,0.00024657,3]
[387226009,1758661860620,-154.654842,0.00024657,7]
[387226010,1758661860631,-945.18,0.00024657,3]
[387226011,1758661860639,-151.0,0.00024657,7]
[387226012,1758661860649,-1181.72,0.00024657,3]
[387226013,1758661860659,-426.24,0.00024657,3]
[387226014,1758661860669,-151.0,0.00024657,7]
[387226015,1758661860678,-624.79,0.00024657,3]
[387226016,1758661860687,-632.04,0.00024657,3]
[387226017,1758661860697,-151.0,0.00024657,7]
[387226018,1758661860706,-1517.08,0.00024657,3]
[387226019,1758661860717,-151.0,0.00024657,7]
[387226020,1758661860727,-1814.29,0.00024657,3]
[387226021,1758661860737,-153.023752,0.00024657,7]
[387226022,1758661860747,-151.0,0.00024657,7]
[387226023,1758661860757,-400.0,0.00024657,3]
[387226024,1758661860766,-151.0,0.00024657,7]
[387226025,1758661860776,-151.0,0.00024657,7]
[387226026,1758661860786,-152.804121,0.00024657,7]
[387226027,1758661860796,-151.0,0.00024657,7]
[387226028,1758661860806,-400.0,0.00024657,3]
[387226029,1758661860815,-151.430967,0.00024657,7]
[387226030,1758661860825,-550.44,0.00024657,3]
[387226031,1758661860835,-338.33170017,0.00024657,3]
[387226032,1758661860844,-213.204085,0.00024657,7]
[387226033,1758661860854,-1812.87,0.00024657,3]
[387226034,1758661860863,-213.204085,0.00024657,7]
[387226035,1758661860873,-213.204085,0.00024657,7]
[387226036,1758661860883,-213.204085,0.00024657,7]
[387226037,1758661860892,-151.0,0.00024657,7]
[387226038,1758661860902,-213.204085,0.00024657,7]
[387226039,1758661860912,-400.0,0.00024657,3]
[387226040,1758661860922,-213.204085,0.00024657,7]
[387226041,1758661860931,-500.0,0.00024657,3]
[387226042,1758661860941,-500.0,0.00024657,3]
[387226043,1758661860951,-151.0,0.00024657,7]
[387226044,1758661860961,-213.204085,0.00024657,7]
[387226045,1758661860970,-500.0,0.00024657,3]
[387226046,1758661860980,-151.0,0.00024657,7]
[387226047,1758661860989,-213.204085,0.00024657,7]
[387226048,1758661860999,-151.0,0.00024657,7]
[387226049,1758661861008,-213.204085,0.00024657,7]
[387226050,1758661861018,-153.30815,0.00024657,7]
[387226051,1758661861027,-1726.16,0.00024657,3]
[387226052,1758661861037,-213.204085,0.00024657,7]
[387226053,1758661861046,-400.0,0.00024657,3]
[387226054,1758661861056,-213.204085,0.00024657,7]
[387226055,1758661861066,-217.99435279,0.00024657,3]
[387226056,1758661861075,-213.204085,0.00024657,7]
[387226057,1758661861084,-400.0,0.00024657,3]
[387226058,1758661861094,-213.204085,0.00024657,7]
[387226059,1758661861103,-151.0,0.00024657,7]
[387226060,1758661861112,-213.204085,0.00024657,7]
[387226061,1758661861121,-202.881506,0.00024657,7]
[387226062,1758661861131,-213.204085,0.00024657,7]
[387226063,1758661861140,-213.204085,0.00024657,7]
[387226064,1758661861150,-294.90406,0.00024657,7]
[387226065,1758661861159,-213.204085,0.00024657,7]
[387226066,1758661861169,-151.0,0.00024657,7]
[387226067,1758661861178,-294.90406,0.00024657,7]
[387226068,1758661861187,-213.204085,0.00024657,7]
[387226069,1758661861196,-151.0,0.00024657,7]
[387226070,1758661861206,-400.0,0.00024657,3]
[387226071,1758661861216,-400.0,0.00024657,3]
[387226072,1758661861226,-294.90406,0.00024657,7]
[387226073,1758661861235,-400.0,0.00024657,3]
[387226074,1758661861245,-213.204085,0.00024657,7]
[387226075,1758661861254,-151.0,0.00024657,7]
[387226076,1758661861264,-294.90406,0.00024657,7]
[387226077,1758661861273,-151.0,0.00024657,7]
[387226078,1758661861283,-213.204089,0.00024657,7]
[387226079,1758661861292,-400.0,0.00024657,3]
[387226080,1758661861301,-294.90406,0.00024657,7]
[387226081,1758661861311,-151.0,0.00024657,7]
[387226082,1758661861320,-400.0,0.00024657,3]
[387226083,1758661861330,-294.90406,0.00024657,7]
[387226084,1758661861339,-400.0,0.00024657,3]
[387226085,1758661861348,-151.0,0.00024657,7]
[387226086,1758661861358,-294.90406,0.00024657,7]
[387226087,1758661861367,-151.0,0.00024657,7]
[387226088,1758661861377,-416.73,0.00024657,3]
[387226089,1758661861386,-294.904054,0.00024657,7]
[387226090,1758661861395,-151.0,0.00024657,7]
[387226091,1758661861405,-153.379086,0.00024657,7]
[387226092,1758661861415,-151.0,0.00024657,7]
[387226093,1758661861424,-1297.0,0.00024657,3]
[387226094,1758661861433,-208.377707,0.00024657,7]
[387226095,1758661861443,-2015.44,0.00024657,3]
[387226096,1758661861452,-400.0,0.00024657,3]
[387226097,1758661861462,-602.31,0.00024657,3]
[387226098,1758661861472,-400.0,0.00024657,3]
[387226099,1758661861481,-400.0,0.00024657,3]
[387226100,1758661861491,-571.24,0.00024657,3]
[387226101,1758661861500,-972.47,0.00024657,3]
[387226102,1758661861510,-942.21,0.00024657,3]
[387226103,1758661861519,-400.0,0.00024657,3]
[387226104,1758661861528,-14573.83,0.00024657,3]
[387226105,1758661861537,-151.0,0.00024657,7]
[387226106,1758661861547,-151.0,0.00024657,7]
[387226107,1758661861556,-435.74,0.00024657,3]
[387226108,1758661861566,-400.0,0.00024657,3]
[387226109,1758661861575,-471.46,0.00024657,3]
[387226110,1758661861587,-400.0,0.00024657,3]
[387226111,1758661861597,-400.0,0.00024657,3]
[387226112,1758661861606,-400.0,0.00024657,3]
[387226113,1758661861616,-2152.264125,0.00024657,7]
[387226114,1758661861627,-1542.67,0.00024657,3]
[387226115,1758661861636,-151.0,0.00024657,7]
[387226116,1758661861646,-2152.264125,0.00024657,7]
[387226117,1758661861656,-593.86,0.00024657,3]
[387226118,1758661861665,-151.0,0.00024657,7]
[387226119,1758661861675,-2152.264125,0.00024657,7]
[387226120,1758661861685,-2152.264125,0.00024657,7]
[387226121,1758661861694,-400.0,0.00024657,3]
[387226122,1758661861703,-400.0,0.00024657,3]
[387226123,1758661861714,-2152.264125,0.00024657,7]
[387226124,1758661861724,-2152.264125,0.00024657,7]
[387226125,1758661861734,-400.0,0.00024657,3]
[387226126,1758661861744,-403.49835402,0.00024657,3]
[387226127,1758661861754,-2152.264125,0.00024657,7]
[387226128,1758661861763,-2152.264125,0.00024657,7]
[387226129,1758661861775,-2152.264125,0.00024657,7]
[387226130,1758661861785,-2152.264125,0.00024657,7]
[387226131,1758661861794,-400.0,0.00024657,3]
[387226132,1758661861805,-2152.264125,0.00024657,7]
[387226133,1758661861815,-400.0,0.00024657,3]
[387226134,1758661861825,-2152.264125,0.00024657,7]
[387226135,1758661861834,-2152.264125,0.00024657,7]
[387226136,1758661861843,-1936.81,0.00024657,3]
[387226137,1758661861855,-2152.264125,0.00024657,7]
[387226138,1758661861864,-233.427696,0.00024657,7]
[387226139,1758661861874,-416.06,0.00024657,3]
[387226140,1758661861884,-400.0,0.00024657,3]
[387226141,1758661861894,-2152.264125,0.00024657,7]
[387226142,1758661861904,-233.427696,0.00024657,7]
[387226143,1758661861914,-2152.264125,0.00024657,7]
[387226144,1758661862127,-233.427696,0.00024657,7]
[387226145,1758661862150,-2152.264125,0.00024657,7]
[387226146,1758661862160,-233.427696,0.00024657,7]
[387226147,1758661862171,-1881.69,0.00024657,3]
[387226148,1758661862181,-2152.264125,0.00024657,7]
[387226149,1758661862191,-233.4277,0.00024657,7]
[387226150,1758661862200,-400.0,0.00024657,3]
[387226151,1758661862210,-959.55,0.00024657,3]
[387226152,1758661862220,-2152.264125,0.00024657,7]
[387226153,1758661862229,-2152.264131,0.00024657,7]
[387226154,1758661862238,-1006.3,0.00024657,3]
[387226155,1758661862247,-400.0,0.00024657,3]
[387226156,1758661862257,-401.87594304,0.00024657,3]
[387226157,1758661862266,-400.0,0.00024657,3]
[387226158,1758661862276,-400.0,0.00024657,3]
[387226159,1758661862286,-1708.83,0.00024657,3]
[387226160,1758661862295,-400.0,0.00024657,3]
[387226161,1758661862304,-400.0,0.00024657,3]
[387226162,1758661862314,-400.0,0.00024657,3]
[387226163,1758661862323,-400.0,0.00024657,3]
[387226164,1758661862333,-586.47,0.00024657,3]
[387226165,1758661862342,-1329.66,0.00024657,3]
[387226166,1758661862352,-400.0,0.00024657,3]
[387226167,1758661862361,-2291.39,0.00024657,3]
[387226168,1758661862370,-151.0,0.00024657,7]
[387226169,1758661862380,-400.0,0.00024657,3]
[387226170,1758661862390,-2285.85,0.00024657,3]
[387226171,1758661862399,-151.0,0.00024657,7]
[387226172,1758661862409,-151.0,0.00024657,7]
[387226173,1758661862418,-400.0,0.00024657,3]
[387226174,1758661862428,-151.0,0.00024657,7]
[387226175,1758661862437,-400.0,0.00024657,3]
[387226176,1758661862447,-400.0,0.00024657,3]
[387226177,1758661862456,-151.0,0.00024657,7]
[387226178,1758661862465,-270.815683,0.00024657,7]
[387226179,1758661862475,-152.889664,0.00024657,7]
[387226180,1758661862486,-400.0,0.00024657,3]
[387226181,1758661862496,-151.0,0.00024657,7]
[387226182,1758661862506,-151.0,0.00024657,7]
[387226183,1758661862516,-151.0,0.00024657,7]
[387226184,1758661862526,-400.0,0.00024657,3]
[387226185,1758661862535,-400.0,0.00024657,3]
[387226186,1758661862545,-151.0,0.00024657,7]
[387226187,1758661862555,-151.0,0.00024657,7]
[387226188,1758661862564,-151.0,0.00024657,7]
[387226189,1758661862574,-1573.42,0.00024657,3]
[387226190,1758661862587,-404.96783902,0.00024657,3]
[387226191,1758661862596,-547.77,0.00024657,3]
[387226192,1758661862606,-401.43685799,0.00024657,3]
[387226193,1758661862615,-500.0,0.00024657,2]
[387226194,1758661862626,-500.0,0.00024657,2]
[387226195,1758661862635,-508.17,0.00024657,3]
[387226196,1758661862645,-637.7152537,0.00024657,2]
[387226197,1758661862657,-400.0,0.00024657,3]
[387226198,1758661862668,-400.0,0.00024657,3]
[387226199,1758661862678,-682.34,0.00024657,3]
[387226200,1758661862687,-1796.15,0.00024657,3]
[387226201,1758661862697,-400.0,0.00024657,3]
[387226202,1758661862707,-542.07,0.00024657,3]
[387226203,1758661862718,-1496.85,0.00024657,3]
[387226204,1758661862727,-400.0,0.00024657,3]
[387226205,1758661862737,-1376.17,0.00024657,3]
[387226206,1758661862746,-540.72568869,0.00024657,3]
[387226207,1758661862755,-1429.93,0.00024657,3]
[387226208,1758661862765,-400.0,0.00024657,3]
[387226209,1758661862774,-400.0,0.00024657,3]
[387226210,1758661862784,-724.99,0.00024657,3]
[387226211,1758661862794,-1199.39,0.00024657,3]
[387226212,1758661862803,-400.0,0.00024657,3]
[387226213,1758661862813,-2733.25,0.00024657,3]
[387226214,1758661862823,-400.0,0.00024657,3]
[387226215,1758661862833,-151.0,0.00024657,7]
[387226216,1758661862843,-151.0,0.00024657,7]
[387226217,1758661862854,-192.715713,0.00024657,7]
[387226218,1758661862864,-151.0,0.00024657,7]
[387226219,1758661862873,-151.0,0.00024657,7]
[387226220,1758661862883,-151.0,0.00024657,7]
[387226221,1758661862892,-151.0,0.00024657,7]
[387226222,1758661862902,-1273.03,0.00024657,3]
[387226223,1758661862912,-151.0,0.00024657,7]
[387226224,1758661862922,-152.659444,0.00024657,7]
[387226225,1758661862931,-151.0,0.00024657,7]
[387226226,1758661862941,-400.0,0.00024657,3]
[387226227,1758661862950,-400.0,0.00024657,3]
[387226228,1758661862959,-510.61,0.00024657,3]
[387226229,1758661862970,-533.33,0.00024657,3]
[387226230,1758661862980,-682.64,0.00024657,3]
[387226231,1758661862989,-1408.96,0.00024657,3]
[387226232,1758661862999,-400.0,0.00024657,3]
[387226233,1758661863008,-1665.63,0.00024657,3]
[387226234,1758661863018,-400.0,0.00024657,3]
[387226235,1758661863027,-400.0,0.00024657,3]
[387226236,1758661863036,-769.29,0.00024657,3]
[387226237,1758661863046,-151.0,0.00024657,7]
[387226238,1758661863055,-699.16,0.00024657,3]
[387226239,1758661863065,-153.240619,0.00024657,7]
[387226240,1758661863074,-751.85,0.00024657,3]
[387226241,1758661863084,-400.0,0.00024657,3]
[387226242,1758661863094,-500.0,0.00024657,3]
[387226243,1758661863104,-7588.12,0.00024657,3]
[387226244,1758661863113,-500.0,0.00024657,3]
[387226245,1758661863123,-500.0,0.00024657,3]
[387226246,1758661863132,-400.0,0.00024657,3]
[387226247,1758661863143,-1242.53,0.00024657,3]
[387226248,1758661863152,-400.0,0.00024657,3]
[387226249,1758661863161,-500.0,0.00024657,3]
[387226250,1758661863171,-500.0,0.00024657,3]
[387226251,1758661863180,-151.0,0.00024657,7]
[387226252,1758661863190,-400.0,0.00024657,3]
[387226253,1758661863199,-151.0,0.00024657,7]
[387226254,1758661863209,-151.0,0.00024657,7]
[387226255,1758661863219,-151.0,0.00024657,7]
[387226256,1758661863229,-151.0,0.00024657,7]
[387226257,1758661863238,-151.0,0.00024657,7]
[387226258,1758661863248,-151.0,0.00024657,7]
[387226259,1758661863258,-151.0,0.00024657,7]
[387226260,1758661863268,-151.0,0.00024657,7]
[387226261,1758661863278,-235.0,0.00024657,7]
[387226262,1758661863288,-151.0,0.00024657,7]
[387226263,1758661863297,-400.0,0.00024657,3]
[387226264,1758661863307,-637.39,0.00024657,3]
[387226265,1758661863317,-579.0,0.00024657,3]
[387226266,1758661863326,-151.0,0.00024657,7]
[387226267,1758661863336,-2636.22,0.00024657,3]
[387226268,1758661863346,-400.0,0.00024657,3]
[387226269,1758661863355,-151.0,0.00024657,7]
[387226270,1758661863365,-151.0,0.00024657,7]
[387226271,1758661863375,-400.0,0.00024657,3]
[387226272,1758661863385,-151.0,0.00024657,7]
[387226273,1758661863394,-1525.02,0.00024657,3]
[387226274,1758661863404,-151.0,0.00024657,7]
[387226275,1758661863413,-151.0,0.00024657,7]
[387226276,1758661863423,-151.0,0.00024657,7]
[387226277,1758661863433,-255.496471,0.00024657,7]
[387226278,1758661863442,-151.0,0.00024657,7]
[387226279,1758661863452,-151.0,0.00024657,7]
[387226280,1758661863462,-151.0,0.00024657,7]
[387226281,1758661863472,-151.0,0.00024657,7]
[387226282,1758661863481,-151.0,0.00024657,7]
[387226283,1758661863491,-168.587275,0.00024657,7]
[387226284,1758661863500,-151.0,0.00024657,7]
[387226285,1758661863510,-1466.31,0.00024657,3]
[387226286,1758661863520,-495.47,0.00024657,3]
[387226287,1758661863530,-400.0,0.00024657,3]
[387226288,1758661863539,-400.0,0.00024657,3]
[387226289,1758661863549,-400.0,0.00024657,3]
[387226290,1758661863559,-400.94807575,0.00024657,3]
[387226291,1758661863568,-798.11,0.00024657,3]
[387226292,1758661863578,-400.0,0.00024657,3]
[387226293,1758661863592,-518.94,0.00024657,3]
[387226294,1758661863602,-1632.56,0.00024657,3]
[387226295,1758661863611,-400.0,0.00024657,3]
[387226296,1758661863621,-400.0,0.00024657,3]
[387226297,1758661863631,-400.0,0.00024657,3]
[387226298,1758661863641,-762.51,0.00024657,3]
[387226299,1758661863650,-2875.87,0.00024657,3]
[387226300,1758661863660,-400.0,0.00024657,3]
[387226301,1758661863670,-400.0,0.00024657,3]
[387226302,1758661863679,-798.6,0.00024657,3]
[387226303,1758661863689,-400.0,0.00024657,3]
[387226304,1758661863699,-177.091364,0.00024657,7]
[387226305,1758661863709,-3762.69,0.00024657,3]
[387226306,1758661863719,-500.0,0.00024657,3]
[387226307,1758661863729,-177.091364,0.00024657,7]
[387226308,1758661863739,-518.86486321,0.00024657,3]
[387226309,1758661863749,-400.0,0.00024657,3]
[387226310,1758661863759,-177.091364,0.00024657,7]
[387226311,1758661863769,-151.0,0.00024657,7]
[387226312,1758661863779,-177.091364,0.00024657,7]
[387226313,1758661863790,-531.71,0.00024657,3]
[387226314,1758661863800,-151.517125,0.00024657,7]
[387226315,1758661863810,-177.091364,0.00024657,7]
[387226316,1758661863820,-400.0,0.00024657,3]
[387226317,1758661863830,-2553.16,0.00024657,3]
[387226318,1758661863839,-177.091364,0.00024657,7]
[387226319,1758661863849,-1956.85,0.00024657,3]
[387226320,1758661863858,-177.091364,0.00024657,7]
[387226321,1758661863868,-177.091364,0.00024657,7]
[387226322,1758661863877,-622.45,0.00024657,3]
[387226323,1758661863887,-177.091364,0.00024657,7]
[387226324,1758661863897,-177.091364,0.00024657,7]
[387226325,1758661863907,-177.091364,0.00024657,7]
[387226326,1758661863916,-177.091364,0.00024657,7]
[387226327,1758661863926,-177.091364,0.00024657,7]
[387226328,1758661863936,-177.091364,0.00024657,7]
[387226329,1758661863946,-1537.92,0.00024657,3]
[387226330,1758661863955,-177.091364,0.00024657,7]
[387226331,1758661863966,-177.091364,0.00024657,7]
[387226332,1758661863975,-788.89,0.00024657,3]
[387226333,1758661863985,-400.0,0.00024657,3]
[387226334,1758661863994,-177.091364,0.00024657,7]
[387226335,1758661864004,-1147.02,0.00024657,3]
[387226336,1758661864014,-177.091364,0.00024657,7]
[387226337,1758661864024,-177.091364,0.00024657,7]
[387226338,1758661864033,-400.0,0.00024657,3]
[387226339,1758661864043,-177.091372,0.00024657,7]
[387226340,1758661864053,-300.0,0.00024657,3]
[387226341,1758661864062,-951.02,0.00024657,3]
[387226342,1758661864072,-500.0,0.00024657,3]
[387226343,1758661864082,-500.0,0.00024657,3]
[387226344,1758661864091,-500.0,0.00024657,3]
[387226345,1758661864101,-234.35835262,0.00024657,3]
[387226346,1758661864111,-972.71,0.00024657,3]
[387226347,1758661864120,-422.03,0.00024657,3]
[387226348,1758661864130,-1066.77,0.00024657,2]
[387226349,1758661864139,-400.0,0.00024657,3]
[387226350,1758661864149,-1066.77,0.00024657,2]
[387226351,1758661864158,-1066.77,0.00024657,2]
[387226352,1758661864168,-1066.77,0.00024657,2]
[387226353,1758661864177,-400.0,0.00024657,3]
[387226354,1758661864188,-1066.77,0.00024657,2]
[387226355,1758661864198,-1066.77,0.00024657,2]
[387226356,1758661864207,-1066.77,0.00024657,2]
[387226357,1758661864217,-1066.77,0.00024657,2]
[387226358,1758661864227,-1066.77,0.00024657,2]
[387226359,1758661864238,-1346.56,0.00024657,3]
[387226360,1758661864248,-1066.77,0.00024657,2]
[387226361,1758661864257,-1066.77,0.00024657,2]
[387226362,1758661864266,-431.34535233,0.00024657,3]
[387226363,1758661864276,-1066.77,0.00024657,2]
[387226364,1758661864285,-1066.77,0.00024657,2]
[387226365,1758661864295,-400.0,0.00024657,3]
[387226366,1758661864304,-400.0,0.00024657,3]
[387226367,1758661864314,-2839.02,0.00024657,3]
[387226368,1758661864324,-1549.36,0.00024657,3]
[387226369,1758661864334,-476.65,0.00024657,3]
[387226370,1758661864344,-400.0,0.00024657,3]
[387226371,1758661864353,-400.0,0.00024657,3]
[387226372,1758661864362,-400.0,0.00024657,3]
[387226373,1758661864371,-400.0,0.00024657,3]
[387226374,1758661864381,-401.59052194,0.00024657,3]
[387226375,1758661864391,-400.0,0.00024657,3]
[387226376,1758661864400,-400.0,0.00024657,3]
[387226377,1758661864410,-400.0,0.00024657,3]
[387226378,1758661864419,-4357.73,0.00024657,3]
[387226379,1758661864429,-1634.04,0.00024657,3]
[387226380,1758661864439,-301.74803829,0.00024657,3]
[387226381,1758661864448,-400.0,0.00024657,3]
[387226382,1758661864457,-404.26082814,0.00024657,3]
[387226383,1758661864467,-500.0,0.00024657,2]
[387226384,1758661864476,-541.83125544,0.00024657,3]
[387226385,1758661864485,-1000.0,0.00024657,3]
[387226386,1758661864495,-409.88,0.00024657,3]
[387226387,1758661864504,-1084.0,0.00024657,3]
[387226388,1758661864513,-400.0,0.00024657,3]
[387226389,1758661864523,-1280.34,0.00024657,3]
[387226390,1758661864532,-400.0,0.00024657,3]
[387226391,1758661864541,-805.32,0.00024657,3]
[387226392,1758661864550,-400.0,0.00024657,3]
[387226393,1758661864559,-400.0,0.00024657,3]
[387226394,1758661864654,-402.3615079,0.00024657,3]
[387226395,1758661864665,-1119.42,0.00024657,3]
[387226396,1758661864674,-2056.73,0.00024657,3]
[387226397,1758661864683,-404.68295665,0.00024657,3]
[387226398,1758661864692,-151.0,0.00024657,7]
[387226399,1758661864702,-384.005336,0.00024657,7]
[387226400,1758661864712,-152.434598,0.00024657,7]
[387226401,1758661864721,-384.005336,0.00024657,7]
[387226402,1758661864731,-160.0,0.00024657,14]
[387226403,1758661864740,-384.005336,0.00024657,7]
[387226404,1758661864749,-160.0,0.00024657,14]
[387226405,1758661864758,-384.005336,0.00024657,7]
[387226406,1758661864767,-400.0,0.00024657,3]
[387226407,1758661864776,-384.005336,0.00024657,7]
[387226408,1758661864785,-160.0,0.00024657,14]
[387226409,1758661864795,-384.005336,0.00024657,7]
[387226410,1758661864803,-160.0,0.00024657,14]
[387226411,1758661864813,-1410.3,0.00024657,3]
[387226412,1758661864822,-384.005336,0.00024657,7]
[387226413,1758661864831,-160.0,0.00024657,14]
[387226414,1758661864840,-1894.78,0.00024657,3]
[387226415,1758661864850,-384.005336,0.00024657,7]
[387226416,1758661864859,-400.0,0.00024657,3]
[387226417,1758661864869,-160.0,0.00024657,14]
[387226418,1758661864879,-384.005336,0.00024657,7]
[387226419,1758661864890,-384.005336,0.00024657,7]
[387226420,1758661864900,-160.0,0.00024657,14]
[387226421,1758661864912,-384.005336,0.00024657,7]
[387226422,1758661864925,-160.0,0.00024657,14]
[387226423,1758661864934,-384.005336,0.00024657,7]
[387226424,1758661864944,-400.0,0.00024657,3]
[387226425,1758661864954,-160.0,0.00024657,14]
[387226426,1758661864964,-400.0,0.00024657,3]
[387226427,1758661864974,-384.005336,0.00024657,7]
[387226428,1758661864984,-160.0,0.00024657,14]
[387226429,1758661864994,-384.005336,0.00024657,7]
[387226430,1758661865004,-160.0,0.00024657,14]
[387226431,1758661865014,-1845.22,0.00024657,3]
[387226432,1758661865023,-1503.29,0.00024657,3]
[387226433,1758661865033,-384.005336,0.00024657,7]
[387226434,1758661865042,-160.0,0.00024657,14]
[387226435,1758661865051,-384.005336,0.00024657,7]
[387226436,1758661865061,-1388.78,0.00024657,3]
[387226437,1758661865070,-160.0,0.00024657,14]
[387226438,1758661865079,-384.005336,0.00024657,7]
[387226439,1758661865089,-160.0,0.00024657,14]
[387226440,1758661865098,-400.0,0.00024657,3]
[387226441,1758661865107,-384.005336,0.00024657,7]
[387226442,1758661865117,-160.0,0.00024657,14]
[387226443,1758661865126,-384.005336,0.00024657,7]
[387226444,1758661865135,-160.0,0.00024657,14]
[387226445,1758661865145,-1850.83,0.00024657,3]
[387226446,1758661865155,-160.0,0.00024657,14]
[387226447,1758661865164,-846.03,0.00024657,3]
[387226448,1758661865173,-384.005328,0.00024657,7]
[387226449,1758661865183,-160.0,0.00024657,14]
[387226450,1758661865193,-8091.04,0.00024657,3]
[387226451,1758661865202,-446.74694805,0.00024657,3]
[387226452,1758661865212,-151.0,0.00024657,7]
[387226453,1758661865222,-160.0,0.00024657,14]
[387226454,1758661865231,-151.0,0.00024657,7]
[387226455,1758661865240,-160.0,0.00024657,14]
[387226456,1758661865250,-400.0,0.00024657,3]
[387226457,1758661865260,-151.0,0.00024657,7]
[387226458,1758661865270,-421.68,0.00024657,3]
[387226459,1758661865280,-160.0,0.00024657,14]
[387226460,1758661865289,-151.0,0.00024657,7]
[387226461,1758661865299,-160.0,0.00024657,14]
[387226462,1758661865309,-151.0,0.00024657,7]
[387226463,1758661865319,-1679.65,0.00024657,3]
[387226464,1758661865329,-160.0,0.00024657,14]
[387226465,1758661865339,-151.0,0.00024657,7]
[387226466,1758661865348,-151.0,0.00024657,7]
[387226467,1758661865357,-401.22779368,0.00024657,3]
[387226468,1758661865367,-160.0,0.00024657,14]
[387226469,1758661865377,-502.01,0.00024657,3]
[387226470,1758661865387,-400.0,0.00024657,3]
[387226471,1758661865396,-151.0,0.00024657,7]
[387226472,1758661865406,-160.0,0.00024657,14]
[387226473,1758661865415,-151.0,0.00024657,7]
[387226474,1758661865425,-151.0,0.00024657,7]
[387226475,1758661865434,-160.0,0.00024657,14]
[387226476,1758661865443,-151.0,0.00024657,7]
[387226477,1758661865453,-151.0,0.00024657,7]